fUSD/lending_fUSD_20260315
["ID","MTS","AMOUNT","RATE_DAILY","PERIOD"]
[408422563,1773598241425,-151.0,0.00022307,2]
[408422564,1773598241435,-151.0,0.00022362,2]
[408422565,1773598241445,-7953.72520835,0.00022366,2]
[408422566,1773598241454,-8669.8379172,0.00022401,2]
[408422567,1773598241464,-151.0,0.00022417,2]
[408422568,1773598241473,-1160.7308273,0.00022466,2]
[408422569,1773598241484,-151.0,0.00022472,2]
[408422570,1773598241493,-160.0,0.00022478,2]
[408422571,1773598241502,-469.87233333,0.00022478,2]
[408422572,1773598241511,-214.33,0.00022499,2]
[408422573,1773598241520,-8212.1306762,0.00022536,2]
[408422574,1773598241530,-500.0,0.00022712,2]
[408422575,1773598241539,-154.0,0.00022742,3]
[408422576,1773598241548,-1604.49900659,0.000229,2]
[408422577,1773598241558,-1934.5023229,0.00022964,2]
[408422578,1773598241567,-258.9940554,0.00023045,2]
[408422579,1773598241579,-1832.3740329,0.00023102,2]
[408422580,1773598241596,-860.54,0.00023163,2]
[408422581,1773598241608,-7953.72520835,0.00023188,2]
[408422582,1773598241619,-1043.0,0.00023251,2]
[408422583,1773598241629,-2000.0,0.00023288,2]
[408422584,1773598241639,-373.23191585,0.000234,2]
[408422585,1773598241649,-3755.0,0.00023403,2]
[408422586,1773598241661,-469.87233333,0.00024,7]
[408422587,1773598241671,-462.306677,0.00024009,2]
[408422588,1773598241681,-7953.72520835,0.00024009,2]
[408422589,1773598241691,-150.0,0.00024046,7]
[408422590,1773598241700,-201.15550661,0.00024046,7]
[408422591,1773598241710,-455.52,0.00024081,2]
[408422592,1773598241720,-340.01126898,0.00024167,2]
[408422593,1773598241730,-860.54,0.00024266,2]
[408422594,1773598241740,-1000.0,0.00024658,2]
[408422595,1773598241749,-151.0,0.00024658,2]
[408422596,1773598241759,-151.0,0.00024658,2]
[408422597,1773598241769,-151.0,0.00024658,2]
[408422598,1773598241779,-226.32924,0.00024658,2]
[408422599,1773598241788,-214.33,0.00024749,120]
[408422600,1773598241798,-7953.72520835,0.00024831,2]
[408422601,1773598241808,-500.0,0.00025,30]
[408422602,1773598241818,-500.0,0.00025,30]
[408422603,1773598241827,-500.0,0.00025,30]
[408422604,1773598241998,-500.0,0.00025,30]
[408422605,1773598242009,-500.0,0.00025,30]
[408422606,1773598242019,-500.0,0.00025,30]
[408422607,1773598242028,-500.0,0.00025,30]
[408422608,1773598242037,-500.0,0.00025,30]
[408422609,1773598242046,-500.0,0.00025,30]
[408422610,1773598242055,-500.0,0.00025,30]
[408422611,1773598242064,-500.0,0.00025,30]
[408422612,1773598242072,-500.0,0.00025,30]
[408422613,1773598242082,-500.0,0.00025,30]
[408422614,1773598242091,-500.0,0.00025,30]
[408422615,1773598242101,-500.0,0.00025,30]
[408422616,1773598242110,-500.0,0.00025,30]
[408422617,1773598242124,-500.0,0.00025,30]
[408422618,1773598242135,-500.0,0.00025,30]
[408422619,1773598242145,-500.0,0.00025,30]
[408422620,1773598242156,-909.53474774,0.00025,30]
[408422621,1773598242166,-500.0,0.00025,30]
[408422622,1773598242177,-500.0,0.00025,30]
[408422623,1773598242188,-500.0,0.00025,30]
[408422624,1773598242197,-500.0,0.00025,30]
[408422625,1773598242206,-500.0,0.00025,30]
[408422626,1773598242215,-500.0,0.00025,30]
[408422627,1773598242225,-500.0,0.00025,30]
[408422628,1773598242234,-500.0,0.00025,30]
[408422629,1773598242243,-500.0,0.00025,30]
[408422630,1773598242252,-469.87233333,0.00025,30]
[408422631,1773598242262,-860.54,0.00025369,2]
[408422632,1773598242271,-2000.0,0.00025405,2]
[408422633,1773598242280,-7953.72520835,0.00025653,2]
[408422634,1773598242290,-150.0,0.00025728,7]
[408422635,1773598242299,-240.17278513,0.00025728,7]
[408422636,1773598242312,-154.0,0.00025785,3]
[408422637,1773598242322,-162.99,0.00025998,2]
[408422638,1773598242331,-455.52,0.00026244,2]
[408422639,1773598242342,-3753.0,0.00026403,2]
[408422640,1773598242353,-860.54,0.00026472,2]
[408422641,1773598242364,-7953.72520835,0.00026475,2]
[408422642,1773598242375,-3741.0,0.00026749,5]
[408422643,1773598242386,-3139.0,0.00026749,5]
[408422644,1773598242396,-469.87233333,0.000268,10]
[408422645,1773598242405,-373.23191585,0.000269,2]
[408422646,1773598242414,-640.0,0.00026908,10]
[408422647,1773598242425,-12152.0,0.00026908,10]
[408422648,1773598242435,-214.33,0.00026999,120]
[408422649,1773598242444,-7953.72520835,0.00027297,2]
[408422650,1773598242455,-300.0,0.00027396,10]
[408422651,1773598242465,-1000.0,0.00027397,20]
[408422652,1773598242474,-300.0,0.00027397,2]
[408422653,1773598242484,-154.109905,0.00027397,2]
[408422654,1773598242494,-1626.959099,0.00027397,2]
[408422655,1773598242507,-1626.959099,0.00027397,2]
[408422656,1773598242516,-1626.959099,0.00027397,2]
[408422657,1773598242526,-1626.959099,0.00027397,2]
[408422658,1773598242535,-213.79864,0.00027397,2]
[408422659,1773598242544,-213.79864,0.00027397,2]
[408422660,1773598242554,-213.79864,0.00027397,2]
[408422661,1773598242565,-213.79864,0.00027397,2]
[408422662,1773598242577,-12476.11,0.00027397,10]
[408422663,1773598242588,-10396.75,0.00027397,10]
[408422664,1773598242597,-10396.75,0.00027397,10]
[408422665,1773598242607,-6931.17,0.00027397,10]
[408422666,1773598242616,-269.466373,0.0002744,14]
[408422667,1773598242627,-169.81,0.00027714,2]
[408422668,1773598242636,-215.33,0.00027803,2]
[408422669,1773598242646,-172.37,0.00027874,2]
[408422670,1773598242658,-1478.83,0.00028064,2]
[408422671,1773598242667,-462.306677,0.00028119,2]
[408422672,1773598242677,-266.523326,0.00028278,14]
[408422673,1773598242687,-455.52,0.00028407,2]
[408422674,1773598242697,-152.0,0.00028738,3]
[408422675,1773598242706,-154.0,0.00028828,3]
[408422676,1773598242716,-234.10367108,0.00028992,7]
[408422677,1773598242726,-4640.77553204,0.0003,30]
[408422678,1773598242735,-1003.79810321,0.0003,2]
[408422679,1773598242744,-200.0,0.00030031,2]
[408422680,1773598242754,-151.0,0.00030137,7]
[408422681,1773598242763,-151.0,0.00030137,7]
[408422682,1773598242774,-373.23191585,0.000304,2]
[408422683,1773598242784,-999.08758442,0.000304,2]
[408422684,1773598242794,-3577.3957583,0.000304,2]
[408422685,1773598242803,-172.35,0.00030411,120]
[408422686,1773598242812,-455.52,0.0003057,2]
[408422687,1773598242822,-154.0,0.00031871,3]
[408422688,1773598242831,-175.69927254,0.00032,120]
[408422689,1773598242842,-260.97130193,0.00032,120]
[408422690,1773598242852,-164.79228215,0.00032,120]
[408422691,1773598242861,-173.27934102,0.00032,120]
[408422692,1773598242870,-195.41167154,0.00032,120]
[408422693,1773598242880,-198.54437559,0.00032,120]
[408422694,1773598242891,-185.70966611,0.00032012,120]
[408422695,1773598242911,-181.956,0.0003211,31]
[408422697,1773598242925,-2190.288,0.0003211,31]
[408422698,1773598242940,-462.306677,0.00032228,2]
[408422699,1773598242957,-455.52,0.00032732,2]
[408422700,1773598242973,-3586.00199967,0.00032781,7]
[408422701,1773598242988,-152.0,0.0003283,4]
[408422703,1773598243002,-578.010728,0.00032877,7]
[408422705,1773598243014,-578.010728,0.00032877,7]
[408422707,1773598243029,-578.010728,0.00032877,7]
[408422709,1773598243044,-578.010728,0.00032877,7]
[408422710,1773598243059,-151.0,0.00032877,7]
[408422712,1773598243075,-209.947152,0.00032877,7]
[408422714,1773598243089,-735.67,0.000329,14]
[408422717,1773598243104,-647.19,0.000329,30]
[408422719,1773598243118,-226.09,0.000329,30]
[408422721,1773598243132,-2595.58,0.000329,2]
[408422723,1773598243147,-175.69927254,0.00033,120]
[408422725,1773598243165,-260.97130193,0.00033,120]
[408422727,1773598243182,-164.79228215,0.00033,120]
[408422728,1773598243195,-173.27934102,0.00033,120]
[408422729,1773598243207,-195.41167154,0.00033,120]
[408422730,1773598243224,-198.54437559,0.00033,120]
[408422731,1773598243239,-150.0,0.00033,14]
[408422732,1773598243250,-175.69927254,0.000339,120]
[408422733,1773598243263,-260.97130193,0.000339,120]
[408422734,1773598243280,-173.27934102,0.000339,120]
[408422735,1773598243294,-195.41167154,0.000339,120]
[408422736,1773598243305,-373.23191585,0.000339,2]
[408422737,1773598243319,-5129.7629011,0.00034,3]
[408422738,1773598243331,-1019.99,0.00034,120]
[408422739,1773598243344,-433.0,0.0003449,10]
[408422740,1773598243358,-350.0,0.00034637,14]
[408422741,1773598243371,-350.0,0.00034637,14]
[408422742,1773598243386,-320.0,0.00034637,14]
[408422743,1773598243399,-150.0,0.00034637,14]
[408422744,1773598243412,-236.0,0.00034637,14]
[408422745,1773598243425,-150.0,0.0003483,7]
[408422746,1773598243438,-150.0,0.0003483,7]
[408422747,1773598243451,-150.0,0.0003483,7]
[408422748,1773598243465,-150.0,0.0003483,7]
[408422749,1773598243478,-234.0,0.0003483,7]
[408422750,1773598243491,-150.0,0.0003483,7]
[408422751,1773598243506,-166.0,0.0003483,7]
[408422752,1773598243519,-150.0,0.00034884,2]
[408422753,1773598243532,-150.0,0.00034884,2]
[408422754,1773598243545,-150.0,0.00034884,2]
[408422755,1773598243559,-150.0,0.00034884,2]
[408422756,1773598243571,-150.0,0.00034884,2]
[408422758,1773598243588,-150.0,0.00034884,2]
[408422759,1773598243600,-150.0,0.00034884,2]
[408422760,1773598243613,-150.0,0.00034884,2]
[408422761,1773598243627,-199.0,0.00034884,2]
[408422762,1773598243640,-150.0,0.00034884,2]
[408422763,1773598243652,-150.0,0.00034884,2]
[408422764,1773598243665,-230.0,0.00034884,2]
[408422766,1773598243678,-455.52,0.00034895,2]
[408422767,1773598243691,-154.0,0.00034914,3]
[408422768,1773598243704,-300.0,0.00034999,10]
[408422769,1773598243717,-300.0,0.00034999,10]
[408422770,1773598243731,-500.0,0.00034999,30]
[408422771,1773598243744,-500.0,0.00034999,30]
[408422772,1773598243757,-750.0,0.00034999,30]
[408422773,1773598243770,-151.0,0.00034999,30]
[408422774,1773598243782,-500.0,0.00034999,30]
[408422775,1773598243794,-260.97130193,0.00035,120]
[408422776,1773598243806,-173.27934102,0.00035,120]
[408422777,1773598243819,-195.41167154,0.00035,120]
[408422778,1773598243832,-22679.81576552,0.00035,120]
[408422781,1773598244324,-32478.3042415,0.00035,120]
[408422782,1773598244347,-683.7324218,0.00035,120]
[408422783,1773598244358,-1023.24592403,0.00035,120]
[408422784,1773598244369,-410.5488391,0.00035,120]
[408422785,1773598244514,-603.0,0.000199,2]
[408422786,1773598244590,-937.70955075,0.000199,2]
[408422787,1773598244601,-210.88445758,0.000199,2]
[408422788,1773598244611,-92.93072854,0.0002,2]
[408422789,1773598244623,-719.01720646,0.0002,2]
[408422790,1773598244632,-11139.0,0.00027898,10]
[408422791,1773598244642,-534.0,0.00027898,10]
[408422792,1773598244653,-13894.45005215,0.00035,120]
[408422793,1773598244663,-469.87233333,0.00035,120]
[408422794,1773598244672,-2595.58,0.00035,2]
[408422795,1773598244681,-151.0,0.00035,7]
[408422796,1773598244690,-151.000009,0.00035,7]
[408422797,1773598244700,-158.410399,0.00035,7]
[408422798,1773598244709,-151.0,0.00035,7]
[408422799,1773598244718,-212.797635,0.00035,7]
[408422800,1773598244727,-151.0,0.00035,7]
[408422801,1773598244736,-151.0,0.00035,7]
[408422802,1773598244746,-151.0,0.00035,7]
[408422803,1773598244755,-151.0,0.00035,7]
[408422804,1773598244764,-1626.959099,0.00035,7]
[408422805,1773598244773,-1626.959099,0.00035,7]
[408422806,1773598244783,-1626.959099,0.00035,7]
[408422807,1773598244792,-1626.959099,0.00035,7]
[408422808,1773598244801,-156.124975,0.00035,7]
[408422809,1773598244810,-151.0,0.00035,7]
[408422810,1773598244819,-151.0,0.00035,7]
[408422811,1773598244828,-151.0,0.00035,7]
[408422812,1773598244837,-151.0,0.00035,7]
[408422813,1773598244847,-213.79864,0.00035,7]
[408422814,1773598244856,-213.79864,0.00035,7]
[408422815,1773598244865,-213.79864,0.00035,7]
[408422816,1773598244874,-213.79864,0.00035,7]
[408422817,1773598244883,-151.0,0.00035,7]
[408422818,1773598244892,-151.0,0.00035,7]
[408422819,1773598244902,-151.0,0.00035,7]
[408422820,1773598244911,-10043.46799889,0.00035,2]
[408422821,1773598244921,-151.0,0.00035164,7]
[408422822,1773598244930,-151.0,0.00035164,7]
[408422823,1773598244939,-150.0,0.00035164,14]
[408422824,1773598244948,-219.0,0.00035164,14]
[408422825,1773598244958,-250.0,0.00035164,14]
[408422826,1773598244968,-250.0,0.00035164,14]
[408422827,1773598244978,-250.0,0.00035164,14]
[408422828,1773598244987,-274.0,0.00035164,14]
[408422829,1773598244996,-300.0,0.00035164,14]
[408422830,1773598245006,-300.0,0.00035164,14]
[408422831,1773598245016,-299.0,0.00035164,14]
[408422832,1773598245025,-1008.0,0.00035164,14]
[408422833,1773598245034,-179.644249,0.0003528,21]
[408422834,1773598245044,-200.0,0.0003536,7]
[408422835,1773598245053,-200.0,0.0003536,7]
[408422836,1773598245062,-200.0,0.0003536,7]
[408422837,1773598245071,-225.0,0.0003536,7]
[408422838,1773598245080,-150.0,0.00035416,2]
[408422839,1773598245090,-150.0,0.00035416,2]
[408422840,1773598245099,-150.0,0.00035416,2]
[408422841,1773598245109,-150.0,0.00035416,2]
[408422842,1773598245119,-150.0,0.00035416,2]
[408422843,1773598245130,-150.0,0.00035416,2]
[408422844,1773598245139,-150.0,0.00035416,2]
[408422845,1773598245151,-150.0,0.00035416,2]
[408422846,1773598245161,-183.0,0.00035416,2]
[408422847,1773598245171,-172.35,0.00035479,120]
[408422848,1773598245182,-214.9778996,0.00035615,10]
[408422849,1773598245192,-150.0,0.00035616,20]
[408422850,1773598245203,-151.0,0.00035616,7]
[408422851,1773598245212,-151.0,0.00035616,7]
[408422852,1773598245222,-209.063343,0.00035616,7]
[408422853,1773598245232,-151.0,0.00035616,7]
[408422854,1773598245242,-151.0,0.00035616,7]
[408422855,1773598245252,-1351.57869449,0.00035616,7]
[408422856,1773598245261,-1351.57869449,0.00035616,7]
[408422857,1773598245271,-1351.57869449,0.00035616,7]
[408422858,1773598245280,-1351.57869449,0.00035616,7]
[408422859,1773598245290,-1351.57869449,0.00035616,7]
[408422860,1773598245299,-1351.57869449,0.00035616,7]
[408422861,1773598245312,-1351.57869449,0.00035616,7]
[408422862,1773598245322,-1351.57869449,0.00035616,7]
[408422863,1773598245332,-1351.57869449,0.00035616,7]
[408422864,1773598245341,-1351.57869449,0.00035616,7]
[408422865,1773598245353,-1351.57869449,0.00035616,7]
[408422866,1773598245362,-1351.57869449,0.00035616,7]
[408422867,1773598245371,-1351.57869449,0.00035616,7]
[408422868,1773598245380,-1351.57869449,0.00035616,7]
[408422869,1773598245390,-1351.57869449,0.00035616,7]
[408422870,1773598245399,-1351.57869449,0.00035616,7]
[408422871,1773598245409,-1351.57869449,0.00035616,7]
[408422872,1773598245419,-1351.57869449,0.00035616,7]
[408422873,1773598245429,-1351.57869449,0.00035616,7]
[408422874,1773598245439,-1351.57869449,0.00035616,7]
[408422875,1773598245449,-1351.57869449,0.00035616,7]
[408422876,1773598245459,-1459.70499006,0.00035616,7]
[408422877,1773598245469,-1459.70499006,0.00035616,7]
[408422878,1773598245478,-1459.70499006,0.00035616,7]
[408422879,1773598245487,-1459.70499006,0.00035616,7]
[408422880,1773598245496,-1459.70499006,0.00035616,7]
[408422881,1773598245506,-356.464778,0.00035616,7]
[408422882,1773598245517,-356.464778,0.00035616,7]
[408422883,1773598245527,-356.464778,0.00035616,7]
[408422884,1773598245536,-356.464778,0.00035616,7]
[408422885,1773598245546,-356.464778,0.00035616,7]
[408422886,1773598245555,-356.464778,0.00035616,7]
[408422887,1773598245565,-356.464778,0.00035616,7]
[408422888,1773598245575,-356.464778,0.00035616,7]
[408422889,1773598245586,-735.67,0.000357,14]
[408422890,1773598245596,-647.19,0.000357,30]
[408422891,1773598245605,-544.57343,0.00035888,30]
[408422892,1773598245615,-150.0,0.00035898,7]
[408422893,1773598245624,-150.0,0.00035898,7]
[408422894,1773598245633,-150.0,0.00035898,7]
[408422895,1773598245642,-285.0,0.00035898,7]
[408422896,1773598245652,-260.97130193,0.00036,120]
[408422897,1773598245662,-173.27934102,0.00036,120]
[408422898,1773598245671,-195.41167154,0.00036,120]
[408422899,1773598245680,-231.060515,0.00036,7]
[408422900,1773598245689,-231.060515,0.00036,7]
[408422901,1773598245699,-231.060515,0.00036,7]
[408422902,1773598245708,-231.060515,0.00036,7]
[408422903,1773598245717,-151.0,0.00036,7]
[408422904,1773598245726,-151.0,0.00036,7]
[408422905,1773598245735,-578.010728,0.00036,7]
[408422906,1773598245744,-151.0,0.00036,7]
[408422907,1773598245754,-578.010728,0.00036,7]
[408422908,1773598245763,-578.010728,0.00036,7]
[408422909,1773598245772,-151.0,0.00036,7]
[408422910,1773598245782,-578.010728,0.00036,7]
[408422911,1773598245791,-469.87233333,0.00036,7]
[408422912,1773598245800,-544.57343,0.00036088,30]
[408422913,1773598245810,-469.87233333,0.000361,120]
[408422914,1773598245819,-544.57343,0.00036288,30]
[408422916,1773598245829,-2595.58,0.000363,2]
[408422917,1773598245839,-150.0,0.00036335,7]
[408422918,1773598245849,-152.0,0.00036335,7]
[408422919,1773598245859,-462.306677,0.00036338,2]
[408422920,1773598245868,-177.682217,0.00036357,21]
[408422921,1773598245878,-150.0,0.00036445,7]
[408422922,1773598245887,-150.0,0.00036445,7]
[408422923,1773598245906,-150.0,0.00036445,7]
[408422924,1773598245917,-150.0,0.00036445,7]
[408422925,1773598245928,-238.0,0.00036445,7]
[408422926,1773598245938,-544.57343,0.00036488,30]
[408422927,1773598245947,-151.0,0.00036687,7]
[408422928,1773598245957,-500.0,0.00036687,46]
[408422929,1773598245967,-500.0,0.00036687,46]
[408422930,1773598245977,-151.0,0.00036687,46]
[408422931,1773598245986,-750.0,0.00036687,46]
[408422932,1773598245996,-500.0,0.00036687,46]
[408422933,1773598246005,-544.57343,0.00036688,30]
[408422934,1773598246017,-544.57343,0.00036888,30]
[408422935,1773598246027,-1815.2447,0.00036888,7]
[408422936,1773598246038,-152.0,0.00036923,5]
[408422937,1773598246048,-455.52,0.00037058,2]
[408422938,1773598246059,-544.57343,0.00037088,30]
[408422939,1773598246068,-544.57343,0.00037288,30]
[408422940,1773598246077,-373.23191585,0.000374,2]
[408422941,1773598246087,-2595.58,0.000374,2]
[408422942,1773598246096,-1019.99,0.000374,120]
[408422943,1773598246106,-1000.0,0.00037487,120]
[408422944,1773598246115,-544.57343,0.00037488,30]
[408422945,1773598246125,-544.57343,0.00037688,30]
[408422946,1773598246134,-150.0,0.0003772,2]
[408422947,1773598246146,-1000.0,0.00037761,120]
[408422948,1773598246156,-544.57343,0.00037888,30]
[408422949,1773598246166,-154.0,0.00037957,3]
[408422950,1773598246176,-1000.0,0.00038035,120]
[408422951,1773598246185,-544.57343,0.00038088,30]
[408422952,1773598246194,-500.0,0.00038099,33]
[408422953,1773598246204,-500.0,0.00038099,33]
[408422954,1773598246215,-151.0,0.00038099,33]
[408422955,1773598246224,-750.0,0.00038099,33]
[408422956,1773598246233,-500.0,0.00038099,33]
[408422957,1773598246243,-159.55851879,0.000381,30]
[408422958,1773598246252,-200.0,0.00038218,14]
[408422959,1773598246262,-255.0,0.00038218,14]
[408422960,1773598246271,-150.0,0.00038269,7]
[408422961,1773598246280,-223.0,0.00038269,7]
[408422962,1773598246290,-300.0,0.00038276,14]
[408422963,1773598246299,-300.0,0.00038276,14]
[408422964,1773598246308,-300.0,0.00038276,14]
[408422966,1773598246318,-376.0,0.00038276,14]
[408422967,1773598246327,-1384.22,0.00038285,2]
[408422968,1773598246337,-544.57343,0.00038288,30]
[408422969,1773598246347,-735.67,0.000383,14]
[408422970,1773598246357,-647.19,0.000383,30]
[408422971,1773598246366,-1000.0,0.00038308,120]
[408422972,1773598246375,-200.0,0.00038415,7]
[408422973,1773598246385,-200.0,0.00038415,7]
[408422974,1773598246394,-200.0,0.00038415,7]
[408422975,1773598246403,-200.0,0.00038415,7]
[408422976,1773598246412,-244.0,0.00038415,7]
[408422977,1773598246421,-544.57343,0.00038488,30]
[408422978,1773598246431,-160.0,0.0003852,120]
[408422979,1773598246440,-1000.0,0.00038582,120]
[408422980,1773598246450,-2200.0,0.00038629,14]
[408422981,1773598246463,-1500.0,0.00038629,14]
[408422982,1773598246473,-700.0,0.00038629,14]
[408422984,1773598246482,-35763.6279,0.0003864,30]
[408422985,1773598246491,-544.57343,0.00038688,30]
[408422986,1773598246501,-500.0,0.000387,120]
[408422988,1773598246511,-500.0,0.000387,120]
[408422989,1773598246522,-500.0,0.000387,120]
[408422990,1773598246531,-500.0,0.000387,120]
[408422991,1773598246541,-500.0,0.000387,120]
[408422992,1773598246551,-500.0,0.000387,120]
[408422993,1773598246561,-500.0,0.000387,120]
[408422994,1773598246571,-500.0,0.000387,120]
[408422995,1773598246588,-500.0,0.000387,120]
[408422996,1773598246597,-500.0,0.000387,120]
[408422997,1773598246607,-500.0,0.000387,120]
[408422998,1773598246618,-469.87233333,0.000387,30]
[408422999,1773598246627,-150.0,0.000388,14]
[408423000,1773598246637,-150.0,0.000388,14]
[408423001,1773598246647,-278.0,0.000388,14]
[408423002,1773598246658,-150.0,0.00038809,7]
[408423003,1773598246668,-150.0,0.00038809,7]
[408423004,1773598246677,-173.0,0.00038809,7]
[408423005,1773598246687,-150.0,0.00038852,7]
[408423006,1773598246697,-150.0,0.00038852,7]
[408423007,1773598246708,-150.0,0.00038852,7]
[408423008,1773598246718,-299.0,0.00038852,7]
[408423009,1773598246728,-1000.0,0.00038856,120]
[408423010,1773598246738,-150.0,0.00038859,14]
[408423011,1773598246747,-150.0,0.00038859,14]
[408423012,1773598246757,-150.0,0.00038859,14]
[408423013,1773598246767,-162.0,0.00038859,14]
[408423014,1773598246777,-152.05765547,0.00038865,60]
[408423015,1773598246786,-5000.0,0.00039,120]
[408423016,1773598246796,-544.57343,0.00039088,30]
[408423017,1773598246805,-150.0,0.00039099,7]
[408423018,1773598246814,-150.0,0.00039099,7]
[408423019,1773598246824,-150.0,0.00039099,7]
[408423020,1773598246834,-242.0,0.00039099,7]
[408423021,1773598246844,-150.0,0.000391,14]
[408423022,1773598246856,-150.0,0.000391,14]
[408423023,1773598246865,-266.0,0.000391,14]
[408423024,1773598246875,-3098.4135747,0.00039111,120]
[408423025,1773598247067,-1000.0,0.0003913,120]
[408423026,1773598247078,-455.52,0.00039221,30]
[408423027,1773598247087,-6236.23,0.00039243,120]
[408423028,1773598247096,-544.57343,0.00039288,30]
[408423029,1773598247106,-1247.79451467,0.00039331,2]
[408423030,1773598247115,-150.0,0.0003936,2]
[408423031,1773598247124,-1000.0,0.00039404,120]
[408423032,1773598247133,-2200.0,0.00039451,14]
[408423033,1773598247143,-1500.0,0.00039451,14]
[408423034,1773598247152,-700.0,0.00039451,14]
[408423035,1773598247161,-544.57343,0.00039488,30]
[408423036,1773598247173,-252.65348501,0.00039678,120]
[408423037,1773598247459,-10000.0,0.000199,2]
[408423038,1773598247469,-558.4170274,0.000199,2]
[408423039,1773598247479,-151.0,0.00021447,2]
[408423040,1773598247488,-151.0,0.00034895,2]
[408423041,1773598247498,-469.87233333,0.00035,7]
[408423042,1773598247508,-498.0,0.00035,30]
[408423043,1773598247517,-10717.0,0.00035,30]
[408423044,1773598247526,-157.512366,0.00035616,7]
[408423045,1773598247536,-747.34651499,0.00039678,120]
[408423046,1773598247546,-544.57343,0.00039688,30]
[408423047,1773598247556,-150.0,0.00039695,7]
[408423048,1773598247565,-150.0,0.00039695,7]
[408423049,1773598247578,-150.0,0.00039695,7]
[408423050,1773598247589,-273.0,0.00039695,7]
[408423051,1773598247598,-150.0,0.00039696,14]
[408423052,1773598247608,-150.0,0.00039696,14]
[408423053,1773598247619,-291.0,0.00039696,14]
[408423054,1773598247629,-1478.83,0.00039845,2]
[408423055,1773598247639,-544.57343,0.00039888,30]
[408423056,1773598247649,-800.0,0.000399,14]
[408423057,1773598247659,-150.0,0.00039913,2]
[408423058,1773598247669,-8125.09806767,0.00039913,2]
[408423059,1773598247679,-1000.0,0.00039952,120]
[408423060,1773598247689,-500.0,0.00039999,30]
[408423061,1773598247698,-500.0,0.00039999,30]
[408423062,1773598247709,-750.0,0.00039999,30]
[408423063,1773598247718,-151.0,0.00039999,30]
[408423064,1773598247728,-500.0,0.00039999,30]
[408423065,1773598247737,-1950.72495119,0.0004,4]
[408423066,1773598247750,-4642.16453433,0.0004,4]
[408423067,1773598247760,-278.5281367,0.0004,60]
[408423068,1773598247769,-3296.98184163,0.0004,120]
[408423069,1773598247779,-469.87233333,0.0004,120]
[408423070,1773598247788,-181.0,0.0004,120]
[408423071,1773598247798,-151.0,0.0004,120]
[408423072,1773598247807,-151.0,0.0004,120]
[408423073,1773598247816,-151.0,0.0004,120]
[408423074,1773598247826,-151.22,0.0004,2]
[408423075,1773598247835,-151.22,0.0004,2]
[408423076,1773598247845,-151.22,0.0004,2]
[408423077,1773598247855,-151.22,0.0004,2]
[408423078,1773598247864,-544.57343,0.00040088,30]
[408423079,1773598247873,-2595.58,0.000401,30]
[408423080,1773598247883,-150.0,0.00040109,2]
[408423081,1773598247892,-1172.61633461,0.00040183,120]
[408423082,1773598247902,-200.0,0.00040222,20]
[408423083,1773598247911,-1000.0,0.00040226,120]
[408423084,1773598247921,-1304.0,0.00040247,120]